fUST/lending_fUST_20250924
["ID","MTS","AMOUNT","RATE_DAILY","PERIOD"]
[387372866,1758707436199,-480.0,0.00019491,2]
[387372867,1758707436209,-901.83,0.00019491,2]
[387372868,1758707436219,-164.35078399,0.00019491,2]
[387372869,1758707436229,-419.85936341,0.00019491,2]
[387372870,1758707436239,-1440.31,0.00019491,2]
[387372871,1758707436248,-480.0,0.00019491,2]
[387372872,1758707436258,-480.0,0.00019491,2]
[387372873,1758707436267,-480.0,0.00019491,2]
[387372874,1758707436277,-480.0,0.00019491,2]
[387372875,1758707436287,-480.0,0.00019491,2]
[387372876,1758707436296,-480.0,0.00019491,2]
[387372877,1758707436306,-480.0,0.00019491,2]
[387372878,1758707436315,-480.0,0.00019491,2]
[387372879,1758707436325,-2517.39,0.00019491,2]
[387372880,1758707436334,-480.0,0.00019491,2]
[387372881,1758707436343,-480.0,0.00019491,2]
[387372882,1758707436354,-1162.04,0.00019491,2]
[387372883,1758707436363,-151.0,0.00019491,2]
[387372884,1758707436372,-480.0,0.00019491,2]
[387372885,1758707436382,-480.0,0.00019491,2]
[387372886,1758707436391,-480.0,0.00019491,2]
[387372887,1758707436400,-157.776083,0.00019491,2]
[387372888,1758707436410,-480.0,0.00019491,2]
[387372889,1758707436419,-480.0,0.00019491,2]
[387372890,1758707436429,-480.0,0.00019491,2]
[387372891,1758707436438,-151.0,0.00019491,2]
[387372892,1758707436447,-480.0,0.00019491,2]
[387372893,1758707436457,-2996.54,0.00019491,2]
[387372894,1758707436466,-151.0,0.00019491,2]
[387372895,1758707436475,-480.0,0.00019491,2]
[387372896,1758707436484,-480.0,0.00019491,2]
[387372897,1758707436493,-480.0,0.00019491,2]
[387372898,1758707436502,-480.0,0.00019491,2]
[387372899,1758707436512,-480.0,0.00019491,2]
[387372900,1758707436521,-608.81,0.00019491,2]
[387372901,1758707436530,-151.0,0.00019491,2]
[387372902,1758707436539,-151.0,0.00019491,2]
[387372903,1758707436549,-151.0,0.00019491,2]
[387372904,1758707436558,-151.0,0.00019491,2]
[387372905,1758707436568,-158.851905,0.00019491,2]
[387372906,1758707436577,-151.0,0.00019491,2]
[387372907,1758707436587,-480.0,0.00019492,2]
[387372908,1758707436596,-151.0,0.00019492,2]
[387372909,1758707436606,-151.0,0.00019492,2]
[387372910,1758707436615,-151.0,0.00019492,2]
[387372911,1758707436701,-480.0,0.00019492,2]
[387372912,1758707436713,-151.0,0.00019492,2]
[387372913,1758707436723,-151.0,0.00019492,2]
[387372914,1758707436733,-183.132502,0.00019492,2]
[387372915,1758707436743,-480.0,0.00019492,2]
[387372916,1758707436752,-480.0,0.00019492,2]
[387372917,1758707436762,-480.0,0.00019492,2]
[387372918,1758707436771,-5048.94,0.00019492,2]
[387372919,1758707436780,-2136.74,0.00019492,2]
[387372920,1758707436789,-857.2,0.00019492,2]
[387372921,1758707436799,-206.14488559,0.00019493,2]
[387372922,1758707436808,-480.0,0.00019493,2]
[387372923,1758707436817,-480.0,0.00019493,2]
[387372924,1758707436827,-518.28482566,0.00019493,2]
[387372925,1758707436836,-485.60796545,0.00019493,2]
[387372926,1758707436845,-480.0,0.00019493,2]
[387372927,1758707436854,-152.628469,0.00019493,2]
[387372928,1758707436864,-158.999003,0.00019493,2]
[387372929,1758707436873,-151.0,0.00019493,2]
[387372930,1758707436882,-151.0,0.00019493,2]
[387372931,1758707436892,-151.0,0.00019493,2]
[387372932,1758707436901,-182.710567,0.00019493,2]
[387372933,1758707436911,-151.0,0.00019493,2]
[387372934,1758707436920,-152.497895,0.00019493,2]
[387372935,1758707436930,-151.0,0.00019493,2]
[387372936,1758707436939,-151.0,0.00019493,2]
[387372937,1758707436949,-480.0,0.00019493,2]
[387372938,1758707436958,-480.0,0.00019493,2]
[387372939,1758707436967,-480.0,0.00019493,2]
[387372940,1758707436977,-480.0,0.00019493,2]
[387372941,1758707436986,-480.0,0.00019493,2]
[387372942,1758707436996,-916.67,0.00019493,2]
[387372943,1758707437005,-480.0,0.00019493,2]
[387372944,1758707437016,-1235.41,0.00019493,2]
[387372945,1758707437026,-480.0,0.00019493,2]
[387372946,1758707437035,-500.0,0.00019626,2]
[387372947,1758707437044,-459.19451796,0.0001964,2]
[387372948,1758707437055,-480.0,0.00019763,2]
[387372949,1758707437064,-480.0,0.00019763,2]
[387372950,1758707437073,-480.0,0.00019763,2]
[387372951,1758707437082,-480.0,0.00019763,2]
[387372952,1758707437093,-480.68,0.00019763,2]
[387372953,1758707437102,-1093.29,0.00019763,2]
[387372954,1758707437111,-480.0,0.00019763,2]
[387372955,1758707437121,-480.0,0.00019763,2]
[387372956,1758707437130,-480.0,0.00019764,2]
[387372957,1758707437139,-480.0,0.00019764,2]
[387372958,1758707437149,-480.0,0.00019764,2]
[387372959,1758707437158,-480.0,0.00019764,2]
[387372960,1758707437167,-480.0,0.00019764,2]
[387372961,1758707437177,-480.0,0.00019764,2]
[387372962,1758707437186,-480.0,0.00019764,2]
[387372964,1758707437196,-480.0,0.00019764,2]
[387372966,1758707437205,-2433.11,0.00019764,2]
[387372967,1758707437214,-480.0,0.00019764,2]
[387372969,1758707437223,-480.0,0.00019764,2]
[387372970,1758707437232,-480.0,0.00019764,2]
[387372971,1758707437241,-950.85,0.00019764,2]
[387372972,1758707437251,-376.8773315,0.00019764,2]
[387372973,1758707437260,-480.0,0.00019764,2]
[387372974,1758707437269,-480.0,0.00019764,2]
[387372975,1758707437279,-480.0,0.00019764,2]
[387372976,1758707437288,-1372.31,0.00019764,2]
[387372977,1758707437297,-480.0,0.00019764,2]
[387372978,1758707437306,-480.0,0.00019764,2]
[387372980,1758707437315,-1505.98,0.00019764,2]
[387372981,1758707437325,-480.0,0.00019764,2]
[387372982,1758707437335,-480.0,0.00019764,2]
[387372983,1758707437343,-480.0,0.00019764,2]
[387372984,1758707437352,-494.08952021,0.00019764,2]
[387372985,1758707437362,-462.04801893,0.00019764,2]
[387372986,1758707437371,-480.0,0.00019764,2]
[387372987,1758707437381,-480.0,0.00019764,2]
[387372988,1758707437391,-480.0,0.00019764,2]
[387372989,1758707437400,-480.0,0.00019764,2]
[387372990,1758707437410,-480.0,0.00019764,2]
[387372991,1758707437420,-528.2,0.00019764,2]
[387372992,1758707437430,-480.0,0.00019764,2]
[387372993,1758707437439,-480.0,0.00019764,2]
[387372994,1758707437448,-480.0,0.00019764,2]
[387372995,1758707437458,-480.0,0.00019764,2]
[387372996,1758707437467,-480.0,0.00019764,2]
[387372997,1758707437476,-799.73,0.00019764,2]
[387372998,1758707437487,-480.0,0.00019764,2]
[387372999,1758707437498,-480.0,0.00019764,2]
[387373000,1758707437508,-480.0,0.00019764,2]
[387373001,1758707437517,-627.43,0.00019764,2]
[387373002,1758707437526,-480.0,0.00019764,2]
[387373003,1758707437535,-617.26,0.00019764,2]
[387373004,1758707437544,-480.0,0.00019764,2]
[387373005,1758707437553,-480.0,0.00019764,2]
[387373006,1758707437563,-480.0,0.00019764,2]
[387373007,1758707437572,-1030.38,0.00019764,2]
[387373008,1758707437581,-480.0,0.00019764,2]
[387373009,1758707437591,-480.0,0.00019764,2]
[387373010,1758707437600,-480.0,0.00019764,2]
[387373011,1758707437610,-233.13302363,0.00019764,2]
[387373012,1758707437621,-480.0,0.00019764,2]
[387373013,1758707437630,-1355.19,0.00019764,2]
[387373014,1758707437639,-2729.88,0.00019764,2]
[387373015,1758707437650,-480.0,0.00019764,2]
[387373016,1758707437659,-1164.38,0.00019764,2]
[387373017,1758707437669,-480.0,0.00019764,2]
[387373019,1758707437678,-480.0,0.00019765,2]
[387373021,1758707437687,-480.0,0.00019765,2]
[387373023,1758707437696,-480.0,0.00019765,2]
[387373025,1758707437706,-480.0,0.00019765,2]
[387373027,1758707437715,-153.088829,0.00019765,2]
[387373029,1758707437724,-480.0,0.00019765,2]
[387373032,1758707437733,-480.0,0.00019765,2]
[387373035,1758707437742,-480.0,0.00019765,2]
[387373037,1758707437752,-480.0,0.00019765,2]
[387373039,1758707437761,-480.0,0.00019765,2]
[387373041,1758707437772,-480.0,0.00019765,2]
[387373043,1758707437781,-151.0,0.00019765,2]
[387373044,1758707437791,-151.498293,0.00019765,2]
[387373045,1758707437800,-151.0,0.00019765,2]
[387373046,1758707437810,-151.0,0.00019765,2]
[387373047,1758707437819,-631.11,0.00019765,2]
[387373048,1758707437829,-480.0,0.00019765,2]
[387373049,1758707437838,-155.186679,0.00019765,2]
[387373050,1758707437847,-480.0,0.00019765,2]
[387373051,1758707437858,-151.0,0.00019765,2]
[387373052,1758707437867,-480.0,0.00019765,2]
[387373053,1758707437877,-151.0,0.00019765,2]
[387373054,1758707437887,-151.0,0.00019765,2]
[387373055,1758707437896,-151.0,0.00019765,2]
[387373056,1758707437906,-480.0,0.00019765,2]
[387373057,1758707437915,-480.0,0.00019765,2]
[387373058,1758707437925,-480.0,0.00019765,2]
[387373059,1758707437934,-480.0,0.00019765,2]
[387373060,1758707437943,-480.0,0.00019765,2]
[387373061,1758707437953,-480.0,0.00019765,2]
[387373062,1758707437962,-480.0,0.00019765,2]
[387373063,1758707437971,-480.0,0.00019765,2]
[387373064,1758707437981,-559.43825369,0.00019765,2]
[387373065,1758707437990,-489.67573655,0.00019765,2]
[387373066,1758707438000,-488.42310806,0.00019765,2]
[387373067,1758707438009,-901.83,0.00019765,2]
[387373068,1758707438021,-1440.31,0.00019765,2]
[387373069,1758707438031,-480.0,0.00019765,2]
[387373070,1758707438040,-480.0,0.00019765,2]
[387373071,1758707438050,-480.0,0.00019765,2]
[387373072,1758707438061,-480.0,0.00019765,2]
[387373073,1758707438070,-480.0,0.00019765,2]
[387373074,1758707438079,-480.0,0.00019765,2]
[387373075,1758707438089,-2517.39,0.00019765,2]
[387373076,1758707438099,-480.0,0.00019765,2]
[387373077,1758707438109,-480.0,0.00019765,2]
[387373078,1758707438119,-1162.04,0.00019765,2]
[387373079,1758707438128,-151.0,0.00019765,2]
[387373080,1758707438138,-480.0,0.00019765,2]
[387373081,1758707438147,-578.15181387,0.00019765,2]
[387373082,1758707438156,-571.8957673,0.00019765,2]
[387373083,1758707438166,-480.0,0.00019765,2]
[387373084,1758707438175,-480.0,0.00019765,2]
[387373085,1758707438184,-480.0,0.00019765,2]
[387373086,1758707438193,-480.0,0.00019765,2]
[387373087,1758707438202,-2996.54,0.00019765,2]
[387373088,1758707438211,-151.0,0.00019765,2]
[387373089,1758707438221,-480.0,0.00019765,2]
[387373090,1758707438230,-480.0,0.00019765,2]
[387373091,1758707438239,-480.0,0.00019765,2]
[387373092,1758707438249,-480.0,0.00019765,2]
[387373093,1758707438258,-608.81,0.00019765,2]
[387373094,1758707438267,-151.0,0.00019765,2]
[387373095,1758707438276,-151.0,0.00019765,2]
[387373096,1758707438286,-151.0,0.00019765,2]
[387373097,1758707438296,-151.0,0.00019765,2]
[387373098,1758707438305,-152.207014,0.00019766,2]
[387373099,1758707438314,-489.77199478,0.00019766,2]
[387373100,1758707438323,-480.0,0.00019766,2]
[387373101,1758707438332,-151.0,0.00019766,2]
[387373102,1758707438342,-480.0,0.00019766,2]
[387373103,1758707438351,-480.0,0.00019766,2]
[387373104,1758707438360,-480.0,0.00019766,2]
[387373105,1758707438369,-5048.94,0.00019766,2]
[387373106,1758707438379,-2136.74,0.00019766,2]
[387373107,1758707438388,-857.2,0.00019766,2]
[387373108,1758707438400,-480.0,0.00019767,2]
[387373109,1758707438416,-480.0,0.00019767,2]
[387373110,1758707438425,-480.0,0.00019767,2]
[387373111,1758707438435,-151.0,0.00019767,2]
[387373112,1758707438452,-151.0,0.00019767,2]
[387373113,1758707438461,-153.385572,0.00019767,2]
[387373114,1758707438471,-300.17754554,0.00019767,2]
[387373115,1758707438480,-480.0,0.00019767,2]
[387373116,1758707438489,-480.0,0.00019767,2]
[387373117,1758707438498,-480.0,0.00019767,2]
[387373118,1758707438507,-480.0,0.00019767,2]
[387373119,1758707438516,-916.67,0.00019767,2]
[387373120,1758707438596,-480.0,0.00019767,2]
[387373121,1758707438607,-1235.41,0.00019767,2]
[387373122,1758707438616,-480.0,0.00019767,2]
[387373123,1758707438626,-500.0,0.000199,2]
[387373124,1758707438635,-151.0,0.000199,2]
[387373125,1758707438644,-212.840078,0.000199,2]
[387373126,1758707438653,-165.769289,0.000199,2]
[387373127,1758707438663,-222.066546,0.000199,2]
[387373128,1758707438671,-2330.3065158,0.000199,2]
[387373129,1758707438681,-1000.0,0.00019921,2]
[387373130,1758707438690,-1000.0,0.00019921,2]
[387373131,1758707438700,-1000.0,0.00019921,2]
[387373132,1758707438709,-503.57654438,0.00019921,2]
[387373133,1758707438718,-504.06127113,0.00019921,2]
[387373134,1758707438727,-1000.0,0.00019921,2]
[387373135,1758707438737,-1000.0,0.00019921,2]
[387373136,1758707438746,-1000.0,0.00019921,2]
[387373137,1758707438756,-1000.0,0.00019921,2]
[387373138,1758707438765,-501.03264956,0.00019921,2]
[387373139,1758707438773,-1000.0,0.00019921,2]
[387373140,1758707438784,-500.0,0.00019921,2]
[387373141,1758707438793,-469.08452869,0.00019921,2]
[387373142,1758707438802,-1000.0,0.00019921,2]
[387373143,1758707438812,-912.3591327,0.00019921,2]
[387373144,1758707438821,-1000.0,0.00019921,2]
[387373145,1758707438830,-1000.0,0.00019921,2]
[387373146,1758707438839,-1000.0,0.00019921,2]
[387373147,1758707438849,-501.91631048,0.00019921,2]
[387373148,1758707438858,-279.48069785,0.00019921,2]
[387373149,1758707438867,-1000.0,0.00019921,2]
[387373150,1758707438877,-1000.0,0.00019921,2]
[387373151,1758707438886,-1000.0,0.00019921,2]
[387373152,1758707438895,-1010.85194241,0.00019921,2]
[387373153,1758707438904,-1000.0,0.00019921,2]
[387373154,1758707438914,-1000.0,0.00019921,2]
[387373155,1758707438924,-1000.0,0.00019921,2]
[387373156,1758707438933,-1010.37775431,0.00019921,2]
[387373157,1758707438942,-1000.0,0.00019921,2]
[387373158,1758707438951,-1000.0,0.00019921,2]
[387373159,1758707438960,-500.0,0.00019921,2]
[387373160,1758707438969,-500.64682143,0.00019921,2]
[387373161,1758707438979,-1000.0,0.00019921,2]
[387373162,1758707438988,-500.0,0.00019921,2]
[387373163,1758707438997,-191.523147,0.00019921,2]
[387373164,1758707439006,-1000.0,0.00020021,2]
[387373165,1758707439018,-212.08534755,0.00020022,2]
[387373166,1758707439026,-480.0,0.00020037,2]
[387373167,1758707439035,-480.0,0.00020037,2]
[387373168,1758707439044,-480.0,0.00020037,2]
[387373169,1758707439053,-480.0,0.00020037,2]
[387373170,1758707439063,-480.68,0.00020037,2]
[387373171,1758707439072,-1093.29,0.00020037,2]
[387373172,1758707439081,-480.0,0.00020037,2]
[387373173,1758707439091,-480.0,0.00020037,2]
[387373174,1758707439102,-480.0,0.00020038,2]
[387373175,1758707439111,-480.0,0.00020038,2]
[387373176,1758707439120,-480.0,0.00020038,2]
[387373177,1758707439130,-480.0,0.00020038,2]
[387373178,1758707439140,-480.0,0.00020038,2]
[387373179,1758707439150,-480.0,0.00020038,2]
[387373180,1758707439159,-480.0,0.00020038,2]
[387373181,1758707439169,-2433.11,0.00020038,2]
[387373182,1758707439179,-480.0,0.00020038,2]
[387373183,1758707439188,-480.0,0.00020038,2]
[387373184,1758707439198,-488.94542507,0.00020038,2]
[387373185,1758707439208,-950.85,0.00020038,2]
[387373186,1758707439218,-480.0,0.00020038,2]
[387373187,1758707439227,-1372.31,0.00020038,2]
[387373188,1758707439236,-480.0,0.00020038,2]
[387373190,1758707439246,-480.0,0.00020038,2]
[387373191,1758707439255,-1505.98,0.00020038,2]
[387373192,1758707439264,-480.0,0.00020038,2]
[387373193,1758707439274,-480.0,0.00020038,2]
[387373194,1758707439284,-480.0,0.00020038,2]
[387373195,1758707439294,-480.0,0.00020038,2]
[387373196,1758707439303,-480.0,0.00020038,2]
[387373197,1758707439312,-480.0,0.00020038,2]
[387373198,1758707439321,-480.0,0.00020038,2]
[387373199,1758707439330,-480.0,0.00020038,2]
[387373200,1758707439339,-528.2,0.00020038,2]
[387373201,1758707439348,-480.0,0.00020038,2]
[387373202,1758707439359,-480.0,0.00020038,2]
[387373203,1758707439368,-480.0,0.00020038,2]
[387373204,1758707439378,-480.0,0.00020038,2]
[387373205,1758707439387,-480.0,0.00020038,2]
[387373206,1758707439397,-799.73,0.00020038,2]
[387373207,1758707439407,-480.0,0.00020038,2]
[387373208,1758707439420,-480.0,0.00020038,2]
[387373209,1758707439430,-480.0,0.00020038,2]
[387373210,1758707439439,-627.43,0.00020038,2]
[387373211,1758707439449,-480.0,0.00020038,2]
[387373212,1758707439458,-617.26,0.00020038,2]
[387373213,1758707439467,-480.0,0.00020038,2]
[387373214,1758707439477,-480.0,0.00020038,2]
[387373215,1758707439486,-480.0,0.00020038,2]
[387373216,1758707439496,-1030.38,0.00020038,2]
[387373217,1758707439505,-480.0,0.00020038,2]
[387373218,1758707439514,-480.0,0.00020038,2]
[387373219,1758707439523,-480.0,0.00020038,2]
[387373220,1758707439533,-1355.19,0.00020038,2]
[387373221,1758707439542,-2729.88,0.00020038,2]
[387373222,1758707439551,-480.0,0.00020038,2]
[387373224,1758707439560,-1164.38,0.00020038,2]
[387373226,1758707439569,-480.0,0.00020038,2]
[387373227,1758707439579,-480.0,0.00020039,2]
[387373228,1758707439588,-480.0,0.00020039,2]
[387373229,1758707439597,-245.15219955,0.00020039,2]
[387373230,1758707439607,-480.0,0.00020039,2]
[387373232,1758707439617,-480.0,0.00020039,2]
[387373234,1758707439626,-480.0,0.00020039,2]
[387373236,1758707439636,-480.0,0.00020039,2]
[387373238,1758707439645,-554.23979426,0.00020039,2]
[387373239,1758707439654,-480.0,0.00020039,2]
[387373241,1758707439665,-631.11,0.00020039,2]
[387373243,1758707439674,-480.0,0.00020039,2]
[387373245,1758707439683,-480.0,0.00020039,2]
[387373247,1758707439693,-480.0,0.00020039,2]
[387373249,1758707439702,-228.213315,0.00020039,2]
[387373251,1758707439711,-151.10311,0.00020039,2]
[387373253,1758707439720,-480.0,0.00020039,2]
[387373255,1758707439729,-480.0,0.00020039,2]
[387373257,1758707439738,-480.0,0.00020039,2]
[387373259,1758707439747,-480.0,0.00020039,2]
[387373261,1758707439756,-536.84146012,0.00020039,2]
[387373263,1758707439765,-480.0,0.00020039,2]
[387373265,1758707439774,-283.26471898,0.00020039,2]
[387373267,1758707439783,-480.0,0.00020039,2]
[387373269,1758707439793,-901.83,0.00020039,2]
[387373270,1758707439802,-1440.31,0.00020039,2]
[387373272,1758707439812,-480.0,0.00020039,2]
[387373274,1758707439821,-612.18992007,0.00020039,2]
[387373276,1758707439831,-480.0,0.00020039,2]
[387373278,1758707439840,-480.0,0.00020039,2]
[387373280,1758707439849,-2517.39,0.00020039,2]
[387373282,1758707439858,-480.0,0.00020039,2]
[387373284,1758707439867,-480.0,0.00020039,2]
[387373286,1758707439876,-1162.04,0.00020039,2]
[387373288,1758707439885,-480.0,0.00020039,2]
[387373290,1758707439894,-480.0,0.00020039,2]
[387373292,1758707439903,-480.0,0.00020039,2]
[387373294,1758707439914,-2996.54,0.00020039,2]
[387373296,1758707439923,-182.447078,0.00020039,2]
[387373298,1758707439932,-480.0,0.00020039,2]
[387373300,1758707439942,-480.0,0.00020039,2]
[387373302,1758707439951,-480.0,0.00020039,2]
[387373304,1758707439960,-480.0,0.00020039,2]
[387373306,1758707439969,-608.81,0.00020039,2]
[387373307,1758707439979,-151.0,0.00020039,2]
[387373309,1758707439988,-151.0,0.00020039,2]
[387373311,1758707439998,-151.0,0.00020039,2]
[387373313,1758707440007,-151.0,0.0002004,2]
[387373315,1758707440020,-151.0,0.0002004,2]
[387373317,1758707440029,-480.0,0.0002004,2]
[387373319,1758707440038,-151.0,0.0002004,2]
[387373321,1758707440047,-480.0,0.0002004,2]
[387373323,1758707440057,-480.0,0.0002004,2]
[387373325,1758707440066,-480.0,0.0002004,2]
[387373327,1758707440075,-5048.94,0.0002004,2]
[387373329,1758707440085,-2136.74,0.0002004,2]
[387373330,1758707440096,-857.2,0.0002004,2]
[387373332,1758707440109,-480.0,0.00020041,2]
[387373334,1758707440118,-480.0,0.00020041,2]
[387373336,1758707440128,-404.54702869,0.00020041,2]
[387373338,1758707440137,-480.0,0.00020041,2]
[387373340,1758707440147,-480.0,0.00020041,2]
[387373342,1758707440156,-480.0,0.00020041,2]
[387373344,1758707440166,-916.67,0.00020041,2]
[387373346,1758707440175,-480.0,0.00020041,2]
[387373348,1758707440184,-1235.41,0.00020041,2]
[387373350,1758707440193,-480.0,0.00020041,2]
[387373352,1758707440203,-500.0,0.00020174,2]
[387373354,1758707440211,-480.0,0.00020311,2]
[387373356,1758707440221,-480.0,0.00020311,2]
[387373358,1758707440230,-480.0,0.00020311,2]
[387373360,1758707440239,-480.0,0.00020311,2]
[387373362,1758707440248,-480.68,0.00020311,2]
[387373370,1758707440328,-1093.29,0.00020311,2]
[387373372,1758707440337,-480.0,0.00020311,2]
[387373374,1758707440347,-480.0,0.00020312,2]
[387373376,1758707440356,-480.0,0.00020312,2]
[387373378,1758707440366,-480.0,0.00020312,2]
[387373380,1758707440375,-151.0,0.00020312,2]
[387373382,1758707440385,-169.926697,0.00020312,2]
[387373384,1758707440394,-574.21544006,0.00020312,2]
[387373386,1758707440404,-480.0,0.00020312,2]
[387373388,1758707440415,-480.0,0.00020312,2]
[387373390,1758707440425,-2433.11,0.00020312,2]
[387373392,1758707440434,-480.0,0.00020312,2]
[387373394,1758707440443,-480.0,0.00020312,2]
[387373396,1758707440452,-950.85,0.00020312,2]
[387373398,1758707440462,-1372.31,0.00020312,2]
[387373400,1758707440471,-480.0,0.00020312,2]
[387373401,1758707440480,-1505.98,0.00020312,2]
[387373403,1758707440489,-480.0,0.00020312,2]
[387373405,1758707440499,-480.0,0.00020312,2]
[387373407,1758707440508,-480.0,0.00020312,2]
[387373409,1758707440517,-480.0,0.00020312,2]
[387373411,1758707440526,-480.0,0.00020312,2]
[387373413,1758707440535,-480.0,0.00020312,2]
[387373415,1758707440545,-480.0,0.00020312,2]
[387373417,1758707440554,-480.0,0.00020312,2]
[387373419,1758707440563,-528.2,0.00020312,2]
[387373421,1758707440572,-480.0,0.00020312,2]
[387373422,1758707440582,-480.0,0.00020312,2]
[387373424,1758707440591,-480.0,0.00020312,2]
[387373426,1758707440600,-480.0,0.00020312,2]
[387373428,1758707440609,-799.73,0.00020312,2]
[387373430,1758707440618,-480.0,0.00020312,2]
[387373432,1758707440627,-480.0,0.00020312,2]
[387373434,1758707440637,-480.0,0.00020312,2]
[387373436,1758707440646,-480.0,0.00020312,2]
[387373438,1758707440655,-627.43,0.00020312,2]
[387373440,1758707440666,-617.26,0.00020312,2]
[387373442,1758707440676,-480.0,0.00020312,2]
[387373444,1758707440685,-480.0,0.00020312,2]
[387373446,1758707440695,-480.0,0.00020312,2]
[387373448,1758707440704,-1030.38,0.00020312,2]
[387373450,1758707440713,-480.0,0.00020312,2]
[387373451,1758707440722,-480.0,0.00020312,2]
[387373453,1758707440732,-480.0,0.00020312,2]
[387373455,1758707440741,-1355.19,0.00020312,2]
[387373457,1758707440751,-2729.88,0.00020312,2]
[387373459,1758707440760,-480.0,0.00020312,2]
[387373461,1758707440770,-1164.38,0.00020312,2]
[387373463,1758707440779,-480.0,0.00020313,2]
[387373465,1758707440789,-480.0,0.00020313,2]
[387373467,1758707440798,-480.0,0.00020313,2]
[387373469,1758707440808,-480.0,0.00020313,2]
[387373471,1758707440817,-480.0,0.00020313,2]
[387373473,1758707440826,-480.0,0.00020313,2]
[387373475,1758707440837,-480.0,0.00020313,2]
[387373477,1758707440847,-631.11,0.00020313,2]
[387373479,1758707440856,-480.0,0.00020313,2]
[387373481,1758707440866,-480.0,0.00020313,2]
[387373482,1758707440875,-480.0,0.00020313,2]
[387373484,1758707440884,-487.51624194,0.00020313,2]
[387373486,1758707440894,-480.0,0.00020313,2]
[387373488,1758707440903,-480.0,0.00020313,2]
[387373490,1758707440913,-480.0,0.00020313,2]
[387373492,1758707440922,-480.0,0.00020313,2]
[387373494,1758707440931,-901.83,0.00020313,2]
[387373496,1758707440941,-1440.31,0.00020313,2]
[387373498,1758707440950,-480.0,0.00020313,2]
[387373500,1758707440959,-480.0,0.00020313,2]
[387373502,1758707440969,-480.0,0.00020313,2]
[387373504,1758707440978,-2517.39,0.00020313,2]
[387373505,1758707440987,-480.0,0.00020313,2]
[387373507,1758707440997,-480.0,0.00020313,2]
[387373509,1758707441006,-1162.04,0.00020313,2]
[387373511,1758707441018,-480.0,0.00020313,2]
[387373513,1758707441033,-480.0,0.00020313,2]
[387373515,1758707441042,-480.0,0.00020313,2]
[387373517,1758707441053,-2996.54,0.00020313,2]
[387373519,1758707441062,-480.0,0.00020313,2]
[387373521,1758707441073,-480.0,0.00020313,2]
[387373523,1758707441082,-480.0,0.00020313,2]
[387373525,1758707441092,-480.0,0.00020313,2]
[387373527,1758707441101,-608.81,0.00020313,2]
[387373529,1758707441110,-480.0,0.00020314,2]
[387373530,1758707441119,-480.0,0.00020314,2]
[387373532,1758707441129,-480.0,0.00020314,2]
[387373534,1758707441138,-5048.94,0.00020314,2]
[387373536,1758707441147,-2136.74,0.00020314,2]
[387373538,1758707441157,-857.2,0.00020314,2]